[Event "*** Titled Tuesday Blitz"]
[Site "Chess.com"]
[Date "2020.04.21"]
[Round "5"]
[White "ALeks_Ivlev"]
[Black "Pultis"]
[Result "0-1"]
[WhiteElo "2521"]
[BlackElo "2731"]
[TimeControl "180+1"]
[EndTime "10:56:16 PDT"]
[Termination "Pultis won by resignation"]

1. d4 {[%clk 0:03:00.9]} 1... Nf6 {[%clk 0:03:00.3]} 2. c4 {[%clk 0:03:01.2]}
2... g6 {[%clk 0:03:00.7]} 3. Nc3 {[%clk 0:03:00.7]} 3... d5 {[%clk 0:03:01.3]}
4. cxd5 {[%clk 0:03:01.3]} 4... Nxd5 {[%clk 0:03:02.2]} 5. e4 {[%clk 0:03:02.1]}
5... Nxc3 {[%clk 0:03:02.9]} 6. bxc3 {[%clk 0:03:02.8]} 6... Bg7 {[%clk
0:03:03.6]} 7. Nf3 {[%clk 0:03:02.6]} 7... O-O {[%clk 0:03:04.1]} 8. Rb1 {[%clk
0:03:03.1]} 8... c5 {[%clk 0:03:04.7]} 9. Be2 {[%clk 0:03:03.4]} 9... cxd4
{[%clk 0:03:05.2]} 10. cxd4 {[%clk 0:03:03.6]} 10... Qa5+ {[%clk 0:03:05.8]} 11.
Qd2 {[%clk 0:03:03.3]} 11... Qxd2+ {[%clk 0:03:06]} 12. Bxd2 {[%clk 0:03:04.2]}
12... b6 {[%clk 0:03:06.4]} 13. O-O {[%clk 0:03:02.9]} 13... Bb7 {[%clk
0:03:05.7]} 14. e5 {[%clk 0:02:59.9]} 14... Rd8 {[%clk 0:03:04.7]} 15. Rfc1
{[%clk 0:02:51.3]} 15... Nc6 {[%clk 0:03:03.2]} 16. Be3 {[%clk 0:02:49]} 16...
e6 {[%clk 0:03:03.3]} 17. Kf1 {[%clk 0:02:40.7]} 17... Rac8 {[%clk 0:03:01.6]}
18. Rb2 {[%clk 0:02:23]} 18... Bf8 {[%clk 0:02:58.2]} 19. Rbc2 {[%clk 0:02:22]}
19... Nb4 {[%clk 0:02:56.5]} 20. Rxc8 {[%clk 0:02:21.3]} 20... Rxc8 {[%clk
0:02:57.4]} 21. Rxc8 {[%clk 0:02:21.6]} 21... Bxc8 {[%clk 0:02:58.3]} 22. Bc4
{[%clk 0:02:20.8]} 22... Bb7 {[%clk 0:02:56.5]} 23. Nd2 {[%clk 0:02:12.5]} 23...
b5 {[%clk 0:02:55]} 24. Bxb5 {[%clk 0:02:10.8]} 24... Nxa2 {[%clk 0:02:55.5]}
25. Nb3 {[%clk 0:02:02.9]} 25... Nc3 {[%clk 0:02:53.5]} 26. Bd3 {[%clk 0:02:02]}
26... Bd5 {[%clk 0:02:51.4]} 27. Bd2 {[%clk 0:01:51.1]} 27... Bb4 {[%clk
0:02:45.3]} 28. Nc5 {[%clk 0:01:47.4]} 28... a5 {[%clk 0:02:39.7]} 29. Ke1
{[%clk 0:01:39.3]} 29... Bxg2 {[%clk 0:02:31.8]} 30. Na6 {[%clk 0:01:39]} 30...
Nd5 {[%clk 0:02:32.1]} 31. Nxb4 {[%clk 0:01:38.2]} 31... axb4 {[%clk 0:02:33]}
32. Bc4 {[%clk 0:01:36.1]} 32... Nc3 {[%clk 0:02:27.3]} 33. Bxc3 {[%clk
0:00:36.2]} 33... bxc3 {[%clk 0:02:28.2]} 34. Kd1 {[%clk 0:00:35.9]} 34... Be4
{[%clk 0:02:28.7]} 35. Bb3 {[%clk 0:00:36.1]} 35... g5 {[%clk 0:02:26.4]} 36.
Bc2 {[%clk 0:00:31.8]} 36... Bxc2+ {[%clk 0:02:15.1]} 37. Kxc2 {[%clk 0:00:32]}
37... Kg7 {[%clk 0:02:16]} 38. Kxc3 {[%clk 0:00:32.2]} 38... Kg6 {[%clk
0:02:16]} 39. Kd3 {[%clk 0:00:33.1]} 39... Kf5 {[%clk 0:02:13.7]} 40. Ke3 {[%clk
0:00:28.9]} 40... Kg4 {[%clk 0:01:54.5]} 41. Ke4 {[%clk 0:00:21.1]} 41... h5
{[%clk 0:01:38]} 42. d5 {[%clk 0:00:20]} 42... exd5+ {[%clk 0:01:38.4]} 43. Kxd5
{[%clk 0:00:20.5]} 43... Kf5 {[%clk 0:01:35.7]} 44. Kd6 {[%clk 0:00:20.6]} 44...
h4 {[%clk 0:01:20.7]} 45. Ke7 {[%clk 0:00:17.6]} 45... Kxe5 {[%clk 0:01:20.6]}
46. Kxf7 {[%clk 0:00:18.1]} 46... h3 {[%clk 0:01:20.3]} 47. Kg6 {[%clk
0:00:18.4]} 47... Kf4 {[%clk 0:01:19.9]} 48. Kh5 {[%clk 0:00:18.9]} 48... g4
{[%clk 0:01:20.2]} 49. Kh4 {[%clk 0:00:18.1]} 49... Kf3 {[%clk 0:01:20.6]} 50.
Kg5 {[%clk 0:00:18.7]} 50... Kxf2 {[%clk 0:01:19.4]} 51. Kxg4 {[%clk 0:00:19.6]}
51... Kg2 {[%clk 0:01:20]} 52. Kf4 {[%clk 0:00:18.6]} 52... Kxh2 {[%clk
0:01:20.4]} 53. Kf3 {[%clk 0:00:19.2]} 53... Kg1 {[%clk 0:01:20.8]} 0-1

[Event "*** Titled Tuesday Blitz"]
[Site "Chess.com"]
[Date "2020.04.21"]
[Round "5"]
[White "Yuri202062"]
[Black "annamaja"]
[Result "1-0"]
[WhiteElo "2494"]
[BlackElo "2224"]
[TimeControl "180+1"]
[EndTime "10:56:16 PDT"]
[Termination "Yuri202062 won on time"]

1. d4 {[%clk 0:03:00.9]} 1... Nf6 {[%clk 0:02:59.4]} 2. c4 {[%clk 0:03:00.3]}
2... e6 {[%clk 0:02:58.9]} 3. Nc3 {[%clk 0:02:59.8]} 3... Bb4 {[%clk 0:02:58.4]}
4. e3 {[%clk 0:03:00]} 4... O-O {[%clk 0:02:57.9]} 5. Bd3 {[%clk 0:02:59.8]}
5... d5 {[%clk 0:02:57.9]} 6. cxd5 {[%clk 0:02:58.7]} 6... exd5 {[%clk
0:02:57.4]} 7. Ne2 {[%clk 0:02:58]} 7... Re8 {[%clk 0:02:54.8]} 8. O-O {[%clk
0:02:56.4]} 8... c6 {[%clk 0:02:52.7]} 9. f3 {[%clk 0:02:54.4]} 9... c5 {[%clk
0:02:30.3]} 10. a3 {[%clk 0:02:53.5]} 10... Bxc3 {[%clk 0:02:13]} 11. bxc3
{[%clk 0:02:52.2]} 11... Nc6 {[%clk 0:02:03.1]} 12. Ng3 {[%clk 0:02:45.7]} 12...
b6 {[%clk 0:01:37.8]} 13. Ra2 {[%clk 0:02:44.8]} 13... a5 {[%clk 0:01:36.6]} 14.
Re2 {[%clk 0:02:42.9]} 14... Ba6 {[%clk 0:01:36.1]} 15. Bxa6 {[%clk 0:02:36.3]}
15... Rxa6 {[%clk 0:01:37]} 16. Bb2 {[%clk 0:02:35.7]} 16... cxd4 {[%clk
0:01:06.2]} 17. cxd4 {[%clk 0:02:34.7]} 17... b5 {[%clk 0:01:01.8]} 18. e4
{[%clk 0:02:34.2]} 18... b4 {[%clk 0:00:49.4]} 19. e5 {[%clk 0:02:30.1]} 19...
Nd7 {[%clk 0:00:48.7]} 20. Nf5 {[%clk 0:02:29.3]} 20... Nb6 {[%clk 0:00:37.2]}
21. Nd6 {[%clk 0:02:21.2]} 21... Rf8 {[%clk 0:00:36.1]} 22. Qd3 {[%clk
0:02:20.7]} 22... Ra7 {[%clk 0:00:30.1]} 23. f4 {[%clk 0:02:09.8]} 23... Na4
{[%clk 0:00:26]} 24. Ba1 {[%clk 0:02:02.8]} 24... Qb6 {[%clk 0:00:24.8]} 25. f5
{[%clk 0:01:54.5]} 25... bxa3 {[%clk 0:00:23]} 26. f6 {[%clk 0:01:20.7]} 26...
Nxe5 {[%clk 0:00:13.6]} 27. Qg3 {[%clk 0:01:07.1]} 27... Ng6 {[%clk 0:00:10.9]}
28. fxg7 {[%clk 0:01:04.2]} 28... Kxg7 {[%clk 0:00:11.1]} 29. Nf5+ {[%clk
0:00:56.7]} 29... Kh8 {[%clk 0:00:11]} 30. Qg5 {[%clk 0:00:55.7]} 30... Nb2
{[%clk 0:00:04.4]} 31. Bxb2 {[%clk 0:00:53.9]} 31... axb2 {[%clk 0:00:04.1]} 32.
Rxb2 {[%clk 0:00:53.4]} 32... Qe6 {[%clk 0:00:01.1]} 33. Re2 {[%clk 0:00:49.9]}
1-0

[Event "*** Titled Tuesday Blitz"]
[Site "Chess.com"]
[Date "2020.04.21"]
[Round "5"]
[White "Ladislav1969"]
[Black "ADODOVE"]
[Result "1/2-1/2"]
[WhiteElo "2268"]
[BlackElo "1915"]
[TimeControl "180+1"]
[EndTime "10:56:16 PDT"]
[Termination "Game drawn by repetition"]

1. e4 {[%clk 0:03:00.9]} 1... e5 {[%clk 0:02:59.1]} 2. Bc4 {[%clk 0:03:00.4]}
2... Nf6 {[%clk 0:02:56.1]} 3. d3 {[%clk 0:03:00.4]} 3... c6 {[%clk 0:02:55.6]}
4. Nf3 {[%clk 0:02:59.1]} 4... d5 {[%clk 0:02:47.5]} 5. Bb3 {[%clk 0:02:59.1]}
5... Bd6 {[%clk 0:02:46.3]} 6. Nc3 {[%clk 0:02:56.4]} 6... d4 {[%clk 0:02:44.9]}
7. Ne2 {[%clk 0:02:56]} 7... O-O {[%clk 0:02:45.8]} 8. O-O {[%clk 0:02:52.2]}
8... Bg4 {[%clk 0:02:45.8]} 9. Ng3 {[%clk 0:02:49.7]} 9... Nbd7 {[%clk 0:02:45]}
10. h3 {[%clk 0:02:48.2]} 10... Bxf3 {[%clk 0:02:29.9]} 11. Qxf3 {[%clk
0:02:47.3]} 11... g6 {[%clk 0:02:30.5]} 12. Bh6 {[%clk 0:02:41.8]} 12... Re8
{[%clk 0:02:27.3]} 13. Qe2 {[%clk 0:02:29.6]} 13... Nc5 {[%clk 0:02:24.4]} 14.
f4 {[%clk 0:02:17.4]} 14... Nxb3 {[%clk 0:02:21.1]} 15. axb3 {[%clk 0:02:16.7]}
15... exf4 {[%clk 0:02:20.7]} 16. Bxf4 {[%clk 0:02:15.8]} 16... Bxf4 {[%clk
0:02:19.9]} 17. Rxf4 {[%clk 0:02:15.4]} 17... Nd5 {[%clk 0:02:20.5]} 18. Rf3
{[%clk 0:02:11.2]} 18... Qg5 {[%clk 0:01:59.3]} 19. Raf1 {[%clk 0:02:01.5]}
19... Re7 {[%clk 0:01:56.3]} 20. R1f2 {[%clk 0:01:52.7]} 20... Rf8 {[%clk
0:01:42.3]} 21. Nf1 {[%clk 0:01:50.6]} 21... f5 {[%clk 0:01:37.7]} 22. Qd2
{[%clk 0:01:45.5]} 22... Qxd2 {[%clk 0:01:31.7]} 23. Nxd2 {[%clk 0:01:45.1]}
23... Ne3 {[%clk 0:01:30.7]} 24. Nc4 {[%clk 0:01:40.5]} 24... Nxc4 {[%clk
0:01:25.9]} 25. bxc4 {[%clk 0:01:39.6]} 25... Ref7 {[%clk 0:01:26.8]} 26. exf5
{[%clk 0:01:29.8]} 26... Rxf5 {[%clk 0:01:23.7]} 27. Rxf5 {[%clk 0:01:29.2]}
27... gxf5 {[%clk 0:01:18.4]} 28. Rf4 {[%clk 0:01:23.8]} 28... c5 {[%clk
0:01:17.2]} 29. Kf2 {[%clk 0:01:22]} 29... Kg7 {[%clk 0:01:16.1]} 30. Kf3 {[%clk
0:01:20.4]} 30... a5 {[%clk 0:01:01.3]} 31. Kg3 {[%clk 0:01:14.4]} 31... b6
{[%clk 0:00:53.3]} 32. Rf2 {[%clk 0:01:11]} 32... Kf6 {[%clk 0:00:45.8]} 33. Re2
{[%clk 0:01:10.7]} 33... Rg8+ {[%clk 0:00:40]} 34. Kf3 {[%clk 0:01:10.4]} 34...
h5 {[%clk 0:00:40]} 35. g3 {[%clk 0:01:08]} 35... h4 {[%clk 0:00:36.9]} 36. gxh4
{[%clk 0:00:57.3]} 36... Rh8 {[%clk 0:00:36.9]} 37. Kg3 {[%clk 0:00:56.6]} 37...
Rg8+ {[%clk 0:00:35.7]} 38. Kf3 {[%clk 0:00:47.7]} 38... Rh8 {[%clk 0:00:34.2]}
39. Kg3 {[%clk 0:00:38.1]} 39... Rg8+ {[%clk 0:00:32.8]} 40. Kf3 {[%clk
0:00:33.2]} 1/2-1/2

[Event "*** Titled Tuesday Blitz"]
[Site "Chess.com"]
[Date "2020.04.21"]
[Round "5"]
[White "Jenia84"]
[Black "Milchone1"]
[Result "1/2-1/2"]
[WhiteElo "2303"]
[BlackElo "2487"]
[TimeControl "180+1"]
[EndTime "10:56:20 PDT"]
[Termination "Game drawn by repetition"]

1. e4 {[%clk 0:03:00.6]} 1... e5 {[%clk 0:02:58.1]} 2. Nf3 {[%clk 0:02:57]} 2...
Nc6 {[%clk 0:02:58.1]} 3. Bb5 {[%clk 0:02:55.2]} 3... Nge7 {[%clk 0:02:58.1]} 4.
O-O {[%clk 0:02:50.5]} 4... a6 {[%clk 0:02:58.3]} 5. Ba4 {[%clk 0:02:49.3]} 5...
g6 {[%clk 0:02:58.3]} 6. Bb3 {[%clk 0:02:49.4]} 6... Bg7 {[%clk 0:02:57.4]} 7.
c3 {[%clk 0:02:47.2]} 7... O-O {[%clk 0:02:57]} 8. d4 {[%clk 0:02:47.6]} 8...
exd4 {[%clk 0:02:56.7]} 9. cxd4 {[%clk 0:02:47.7]} 9... b5 {[%clk 0:02:55.3]}
10. a3 {[%clk 0:02:44.9]} 10... d6 {[%clk 0:02:52.5]} 11. h3 {[%clk 0:02:42]}
11... Na5 {[%clk 0:02:51.4]} 12. Bc2 {[%clk 0:02:33.2]} 12... c5 {[%clk
0:02:49.8]} 13. Nc3 {[%clk 0:02:31.1]} 13... h6 {[%clk 0:02:35.9]} 14. dxc5
{[%clk 0:02:22]} 14... dxc5 {[%clk 0:02:34.6]} 15. Qxd8 {[%clk 0:02:22.4]} 15...
Rxd8 {[%clk 0:02:34.9]} 16. Be3 {[%clk 0:02:21.9]} 16... Nc4 {[%clk 0:02:11.9]}
17. Bxc5 {[%clk 0:02:20.9]} 17... Nc6 {[%clk 0:02:12.4]} 18. Rad1 {[%clk
0:02:07]} 18... Rxd1 {[%clk 0:02:05.4]} 19. Rxd1 {[%clk 0:02:06]} 19... Nxb2
{[%clk 0:01:59.4]} 20. Rd6 {[%clk 0:02:02.2]} 20... Bxc3 {[%clk 0:01:41.5]} 21.
Rxc6 {[%clk 0:02:01.3]} 21... Nc4 {[%clk 0:01:29.6]} 22. Bb3 {[%clk 0:01:23.2]}
22... Bb7 {[%clk 0:01:24.8]} 23. Rc7 {[%clk 0:01:15.5]} 23... Bxe4 {[%clk
0:01:22.7]} 24. Bb4 {[%clk 0:01:09]} 24... Bxb4 {[%clk 0:01:10.3]} 25. axb4
{[%clk 0:01:08.7]} 25... Bxf3 {[%clk 0:00:59.1]} 26. gxf3 {[%clk 0:01:07.2]}
26... a5 {[%clk 0:00:50.2]} 27. bxa5 {[%clk 0:01:02.9]} 27... Rxa5 {[%clk
0:00:51.1]} 28. Bxc4 {[%clk 0:01:01.2]} 28... bxc4 {[%clk 0:00:52]} 29. Rxc4
{[%clk 0:01:00.3]} 29... Kg7 {[%clk 0:00:52.6]} 30. Kg2 {[%clk 0:00:59.4]} 30...
h5 {[%clk 0:00:53.1]} 31. h4 {[%clk 0:00:58.4]} 31... Ra3 {[%clk 0:00:46.9]} 32.
Rd4 {[%clk 0:00:57.7]} 32... Ra6 {[%clk 0:00:46.9]} 33. Re4 {[%clk 0:00:57.3]}
33... f6 {[%clk 0:00:46.7]} 34. Rc4 {[%clk 0:00:56.2]} 34... g5 {[%clk
0:00:46.6]} 35. hxg5 {[%clk 0:00:46.4]} 35... fxg5 {[%clk 0:00:47.5]} 36. f4
{[%clk 0:00:46.7]} 36... g4 {[%clk 0:00:44.8]} 37. Kg3 {[%clk 0:00:45.1]} 37...
Kg6 {[%clk 0:00:43.4]} 38. Kh4 {[%clk 0:00:44.4]} 38... Rf6 {[%clk 0:00:41]} 39.
Re4 {[%clk 0:00:42.1]} 39... Rf5 {[%clk 0:00:35.4]} 40. Re6+ {[%clk 0:00:41.2]}
40... Kf7 {[%clk 0:00:33.5]} 41. Re4 {[%clk 0:00:40.8]} 41... Kg6 {[%clk
0:00:33]} 42. Re6+ {[%clk 0:00:40.5]} 42... Kf7 {[%clk 0:00:33.4]} 43. Re4
{[%clk 0:00:40.3]} 43... Kg6 {[%clk 0:00:32.2]} 1/2-1/2

[Event "*** Titled Tuesday Blitz"]
[Site "Chess.com"]
[Date "2020.04.21"]
[Round "5"]
[White "TengisChess"]
[Black "tacticthunder"]
[Result "1-0"]
[WhiteElo "2479"]
[BlackElo "2607"]
[TimeControl "180+1"]
[EndTime "10:56:21 PDT"]
[Termination "TengisChess won on time"]

1. Nf3 {[%clk 0:02:59.3]} 1... Nf6 {[%clk 0:02:09.9]} 2. g3 {[%clk 0:02:59]}
2... b5 {[%clk 0:02:06.3]} 3. Bg2 {[%clk 0:02:58.8]} 3... Bb7 {[%clk 0:02:04.7]}
4. O-O {[%clk 0:02:59.7]} 4... e6 {[%clk 0:02:04.5]} 5. a4 {[%clk 0:03:00.3]}
5... b4 {[%clk 0:02:03.6]} 6. c4 {[%clk 0:03:00.3]} 6... bxc3 {[%clk 0:02:02.4]}
7. bxc3 {[%clk 0:02:57.3]} 7... c5 {[%clk 0:01:58.7]} 8. d3 {[%clk 0:02:52.3]}
8... Be7 {[%clk 0:01:56.7]} 9. c4 {[%clk 0:02:52.2]} 9... O-O {[%clk 0:01:56.1]}
10. Nc3 {[%clk 0:02:52.4]} 10... Nc6 {[%clk 0:01:55.5]} 11. Rb1 {[%clk
0:02:51.3]} 11... Rb8 {[%clk 0:01:55.6]} 12. Bf4 {[%clk 0:02:51.2]} 12... d6
{[%clk 0:01:53.5]} 13. Bg5 {[%clk 0:02:45.5]} 13... Qd7 {[%clk 0:01:50.6]} 14.
Nd2 {[%clk 0:02:43]} 14... h6 {[%clk 0:01:46.9]} 15. Bxf6 {[%clk 0:02:42.9]}
15... Bxf6 {[%clk 0:01:47.8]} 16. Nde4 {[%clk 0:02:42.5]} 16... Be5 {[%clk
0:01:17.2]} 17. Nb5 {[%clk 0:01:46.1]} 17... f5 {[%clk 0:00:52.3]} 18. Nd2
{[%clk 0:01:32.8]} 18... a6 {[%clk 0:00:48.9]} 19. Na3 {[%clk 0:01:32.9]} 19...
Nd4 {[%clk 0:00:32.3]} 20. Rxb7 {[%clk 0:01:28.4]} 20... Rxb7 {[%clk 0:00:33.2]}
21. Bxb7 {[%clk 0:01:28.7]} 21... Qxb7 {[%clk 0:00:33.7]} 22. Nc2 {[%clk
0:01:29.3]} 22... Nc6 {[%clk 0:00:28.8]} 23. Nf3 {[%clk 0:01:28.2]} 23... Bf6
{[%clk 0:00:24.4]} 24. d4 {[%clk 0:01:27.8]} 24... Qe7 {[%clk 0:00:17.5]} 25. d5
{[%clk 0:01:26.9]} 25... Na5 {[%clk 0:00:12.4]} 26. Ne3 {[%clk 0:01:26.7]} 26...
Rb8 {[%clk 0:00:08.8]} 27. dxe6 {[%clk 0:01:26]} 27... Qxe6 {[%clk 0:00:09.7]}
28. Qd2 {[%clk 0:01:17.1]} 28... g6 {[%clk 0:00:08.4]} 29. Qxa5 {[%clk
0:01:16.7]} 29... Rb3 {[%clk 0:00:06.7]} 30. Qxa6 {[%clk 0:01:14.2]} 30... f4
{[%clk 0:00:04.1]} 31. Nd5 {[%clk 0:01:11.3]} 31... fxg3 {[%clk 0:00:03.1]} 32.
hxg3 {[%clk 0:01:11.2]} 32... Bg7 {[%clk 0:00:03.2]} 33. Nf4 {[%clk 0:01:07.6]}
33... Qf5 {[%clk 0:00:01.8]} 34. Qxd6 {[%clk 0:01:06.7]} 34... Kh7 {[%clk
0:00:02]} 35. Nh4 {[%clk 0:01:05.5]} 35... Qg5 {[%clk 0:00:01.8]} 36. Nhxg6
{[%clk 0:01:04.6]} 36... h5 {[%clk 0:00:01.6]} 37. Nh4 {[%clk 0:01:03.2]} 37...
Qh6 {[%clk 0:00:02.5]} 38. Qd1 {[%clk 0:01:00.5]} 38... Qg5 {[%clk 0:00:01.5]}
39. Qxb3 {[%clk 0:01:00.3]} 1-0

[Event "*** Titled Tuesday Blitz"]
[Site "Chess.com"]
[Date "2020.04.21"]
[Round "5"]
[White "FeketeBarika"]
[Black "Shuvalov"]
[Result "1-0"]
[WhiteElo "2284"]
[BlackElo "2451"]
[TimeControl "180+1"]
[EndTime "10:56:25 PDT"]
[Termination "FeketeBarika won by checkmate"]

1. Nf3 {[%clk 0:02:41.2]} 1... d5 {[%clk 0:02:59.5]} 2. g3 {[%clk 0:02:42.1]}
2... Nf6 {[%clk 0:02:59.1]} 3. Bg2 {[%clk 0:02:42.5]} 3... Bf5 {[%clk
0:02:59.7]} 4. c4 {[%clk 0:02:41.3]} 4... e6 {[%clk 0:02:53.7]} 5. Qb3 {[%clk
0:02:37.1]} 5... Nc6 {[%clk 0:02:49.2]} 6. cxd5 {[%clk 0:02:32.2]} 6... exd5
{[%clk 0:02:43]} 7. Qxb7 {[%clk 0:02:27]} 7... Nb4 {[%clk 0:02:42.7]} 8. Nd4
{[%clk 0:02:26.9]} 8... Bc5 {[%clk 0:02:15.9]} 9. Qb5+ {[%clk 0:02:14.4]} 9...
Nd7 {[%clk 0:02:08.6]} 10. Nxf5 {[%clk 0:02:10]} 10... Nc2+ {[%clk 0:02:00]} 11.
Kd1 {[%clk 0:02:09.9]} 11... Nxa1 {[%clk 0:01:54.4]} 12. Nxg7+ {[%clk
0:02:09.8]} 12... Kf8 {[%clk 0:01:54.7]} 13. Nf5 {[%clk 0:02:09.6]} 13... Rb8
{[%clk 0:01:47.4]} 14. Qd3 {[%clk 0:02:05.1]} 14... Nf6 {[%clk 0:01:40.2]} 15.
b3 {[%clk 0:01:58.9]} 15... Ng4 {[%clk 0:01:29.3]} 16. Qc3 {[%clk 0:01:49.5]}
16... Nxf2+ {[%clk 0:01:11.4]} 17. Ke1 {[%clk 0:01:48.1]} 17... Nc2+ {[%clk
0:01:10.5]} 18. Qxc2 {[%clk 0:01:37.3]} 18... Bb6 {[%clk 0:01:02.9]} 19. Ba3+
{[%clk 0:01:34.9]} 19... Kg8 {[%clk 0:00:58.1]} 20. Rf1 {[%clk 0:01:30.5]} 20...
h5 {[%clk 0:00:49.7]} 21. e3 {[%clk 0:01:17.8]} 21... Ne4 {[%clk 0:00:47.1]} 22.
Bxe4 {[%clk 0:01:15.4]} 22... dxe4 {[%clk 0:00:48]} 23. Qxe4 {[%clk 0:01:11.1]}
23... Qd7 {[%clk 0:00:36.4]} 24. Ne7+ {[%clk 0:01:09.4]} 24... Kg7 {[%clk
0:00:29.3]} 25. Qe5+ {[%clk 0:01:09.4]} 25... Kh7 {[%clk 0:00:27.1]} 26. Qxh5+
{[%clk 0:01:08.6]} 26... Kg7 {[%clk 0:00:27.6]} 27. Qg5+ {[%clk 0:01:06.2]}
27... Kf8 {[%clk 0:00:21.8]} 28. Ng6+ {[%clk 0:00:50.8]} 28... Ke8 {[%clk
0:00:19.5]} 29. Qe5+ {[%clk 0:00:50.1]} 29... Qe6 {[%clk 0:00:18.2]} 30. Qxh8+
{[%clk 0:00:49.3]} 30... Kd7 {[%clk 0:00:19.1]} 31. Qxb8 {[%clk 0:00:47]} 31...
Qxg6 {[%clk 0:00:19.3]} 32. Nc3 {[%clk 0:00:41]} 32... Bxe3 {[%clk 0:00:17.7]}
33. dxe3 {[%clk 0:00:37.2]} 33... Qd3 {[%clk 0:00:17.8]} 34. Rxf7+ {[%clk
0:00:31.6]} 34... Ke6 {[%clk 0:00:13.5]} 35. Qe8# {[%clk 0:00:31.2]} 1-0

[Event "*** Titled Tuesday Blitz"]
[Site "Chess.com"]
[Date "2020.04.21"]
[Round "5"]
[White "Sanyura"]
[Black "violetflower04"]
[Result "1-0"]
[WhiteElo "2424"]
[BlackElo "2237"]
[TimeControl "180+1"]
[EndTime "10:56:25 PDT"]
[Termination "Sanyura won by checkmate"]

1. e4 {[%clk 0:03:00.9]} 1... c5 {[%clk 0:03:00.5]} 2. Nf3 {[%clk 0:03:00.7]}
2... e6 {[%clk 0:02:59.7]} 3. d4 {[%clk 0:02:59]} 3... cxd4 {[%clk 0:03:00.6]}
4. Nxd4 {[%clk 0:02:52.6]} 4... Nf6 {[%clk 0:03:01.3]} 5. Nc3 {[%clk 0:02:52]}
5... Nc6 {[%clk 0:03:01.9]} 6. Ndb5 {[%clk 0:02:51.5]} 6... Bb4 {[%clk
0:03:01.6]} 7. a3 {[%clk 0:02:50.8]} 7... Bxc3+ {[%clk 0:03:01.8]} 8. Nxc3
{[%clk 0:02:51.7]} 8... O-O {[%clk 0:03:02.3]} 9. Bd3 {[%clk 0:02:50.8]} 9... d5
{[%clk 0:03:02.3]} 10. exd5 {[%clk 0:02:51.7]} 10... exd5 {[%clk 0:03:02.9]} 11.
O-O {[%clk 0:02:51.7]} 11... Bg4 {[%clk 0:03:03.2]} 12. f3 {[%clk 0:02:50.5]}
12... Bh5 {[%clk 0:02:56.3]} 13. b4 {[%clk 0:02:47]} 13... Ne5 {[%clk
0:02:43.7]} 14. Bg5 {[%clk 0:02:45.7]} 14... Qb6+ {[%clk 0:01:51.8]} 15. Kh1
{[%clk 0:02:43.6]} 15... d4 {[%clk 0:01:51.9]} 16. Ne4 {[%clk 0:02:33.8]} 16...
Nxe4 {[%clk 0:01:44]} 17. Bxe4 {[%clk 0:02:34.7]} 17... h6 {[%clk 0:01:30.9]}
18. Be7 {[%clk 0:02:26.6]} 18... Rfc8 {[%clk 0:01:16.5]} 19. Bc5 {[%clk
0:02:26.1]} 19... Rxc5 {[%clk 0:01:16.5]} 20. bxc5 {[%clk 0:02:27]} 20... Qxc5
{[%clk 0:01:17.4]} 21. Rb1 {[%clk 0:02:25.4]} 21... Nc4 {[%clk 0:01:13]} 22. Qd3
{[%clk 0:02:16.3]} 22... Re8 {[%clk 0:01:00.6]} 23. Rfd1 {[%clk 0:02:10.1]}
23... f5 {[%clk 0:00:51]} 24. Bxb7 {[%clk 0:01:56.4]} 24... Re3 {[%clk
0:00:48.9]} 25. Qf1 {[%clk 0:01:53]} 25... Nxa3 {[%clk 0:00:31.7]} 26. Ra1
{[%clk 0:01:48.6]} 26... Nxc2 {[%clk 0:00:27.3]} 27. Rac1 {[%clk 0:01:48.2]}
27... Rc3 {[%clk 0:00:26.7]} 28. Rd3 {[%clk 0:01:18.5]} 28... Bf7 {[%clk
0:00:11.1]} 29. Rxc3 {[%clk 0:01:11.3]} 29... Qxc3 {[%clk 0:00:12]} 30. Ba6
{[%clk 0:01:08.3]} 30... Bb3 {[%clk 0:00:11.7]} 31. Qd3 {[%clk 0:01:06.1]} 31...
Qb2 {[%clk 0:00:11.1]} 32. Bc4+ {[%clk 0:01:03.7]} 32... Kh8 {[%clk 0:00:08.7]}
33. Re1 {[%clk 0:01:00.8]} 33... Bxc4 {[%clk 0:00:07.8]} 34. Re8+ {[%clk
0:00:57]} 34... Bg8 {[%clk 0:00:06.7]} 35. h3 {[%clk 0:00:57.5]} 35... Qb1+
{[%clk 0:00:06.8]} 36. Kh2 {[%clk 0:00:57.3]} 36... Qb2 {[%clk 0:00:06.8]} 37.
Qc4 {[%clk 0:00:54.9]} 37... Kh7 {[%clk 0:00:04.4]} 38. Qxg8+ {[%clk 0:00:54.8]}
38... Kg6 {[%clk 0:00:05.3]} 39. Re6+ {[%clk 0:00:55.3]} 39... Kg5 {[%clk
0:00:04.6]} 40. Qxg7+ {[%clk 0:00:54.8]} 40... Kf4 {[%clk 0:00:05.5]} 41. Qg3#
{[%clk 0:00:54.1]} 1-0

[Event "*** Titled Tuesday Blitz"]
[Site "Chess.com"]
[Date "2020.04.21"]
[Round "5"]
[White "profofchess"]
[Black "checkmatequen"]
[Result "1-0"]
[WhiteElo "2382"]
[BlackElo "2232"]
[TimeControl "180+1"]
[EndTime "10:56:25 PDT"]
[Termination "profofchess won on time"]

1. e4 {[%clk 0:03:00.9]} 1... c5 {[%clk 0:02:57.8]} 2. Nf3 {[%clk 0:02:59.2]}
2... e6 {[%clk 0:02:57.1]} 3. c3 {[%clk 0:02:59]} 3... d5 {[%clk 0:02:54.8]} 4.
e5 {[%clk 0:02:58.6]} 4... d4 {[%clk 0:02:54.3]} 5. Bd3 {[%clk 0:02:58]} 5...
Nc6 {[%clk 0:02:53.1]} 6. O-O {[%clk 0:02:57.2]} 6... Nge7 {[%clk 0:02:51.6]} 7.
Re1 {[%clk 0:02:56.6]} 7... Ng6 {[%clk 0:02:49.7]} 8. g3 {[%clk 0:02:56.9]} 8...
Be7 {[%clk 0:02:39]} 9. h4 {[%clk 0:02:55.9]} 9... h6 {[%clk 0:02:25.5]} 10. Na3
{[%clk 0:02:51.8]} 10... O-O {[%clk 0:02:23]} 11. b3 {[%clk 0:02:43.9]} 11...
Re8 {[%clk 0:02:21.1]} 12. Bb2 {[%clk 0:02:41.5]} 12... a6 {[%clk 0:02:16.3]}
13. cxd4 {[%clk 0:02:17.5]} 13... cxd4 {[%clk 0:02:12.3]} 14. Nc2 {[%clk
0:02:16.9]} 14... Bc5 {[%clk 0:02:06.6]} 15. Qe2 {[%clk 0:01:55.1]} 15... b5
{[%clk 0:01:53.4]} 16. Rac1 {[%clk 0:01:53.6]} 16... Bb7 {[%clk 0:01:52.2]} 17.
Be4 {[%clk 0:01:33.3]} 17... Qb6 {[%clk 0:01:19.8]} 18. d3 {[%clk 0:01:27.9]}
18... Rad8 {[%clk 0:01:14.4]} 19. h5 {[%clk 0:01:07.7]} 19... Nf8 {[%clk
0:01:09]} 20. Rb1 {[%clk 0:00:50.7]} 20... Nd7 {[%clk 0:00:57.1]} 21. Bc1 {[%clk
0:00:49.1]} 21... a5 {[%clk 0:00:54.7]} 22. Bf4 {[%clk 0:00:47]} 22... b4 {[%clk
0:00:52]} 23. Qd2 {[%clk 0:00:46.7]} 23... f5 {[%clk 0:00:45.2]} 24. exf6 {[%clk
0:00:43.7]} 24... Nxf6 {[%clk 0:00:45.5]} 25. Bg6 {[%clk 0:00:42.9]} 25... Re7
{[%clk 0:00:43.3]} 26. Bxh6 {[%clk 0:00:32]} 26... gxh6 {[%clk 0:00:41.8]} 27.
Qxh6 {[%clk 0:00:32.9]} 27... Red7 {[%clk 0:00:08.4]} 28. Qg5 {[%clk 0:00:31.5]}
28... Bf8 {[%clk 0:00:03.1]} 29. Qxf6 {[%clk 0:00:27.4]} 1-0